fUST/lending_fUST_20251005
["ID","MTS","AMOUNT","RATE_DAILY","PERIOD"]
[389160716,1759594239886,-1751.15,0.00019178,2]
[389160717,1759594239895,-500.0,0.00019178,2]
[389160718,1759594239904,-500.0,0.00019178,2]
[389160719,1759594239913,-582.11,0.00019178,2]
[389160720,1759594239923,-945.03,0.00019178,2]
[389160721,1759594239932,-500.0,0.00019178,2]
[389160722,1759594239941,-846.77,0.00019178,2]
[389160723,1759594239951,-500.0,0.00019178,2]
[389160724,1759594239960,-500.0,0.00019178,2]
[389160725,1759594239969,-1048.13,0.00019178,2]
[389160726,1759594239978,-500.0,0.00019178,2]
[389160727,1759594239988,-500.0,0.00019178,2]
[389160728,1759594239997,-1604.48,0.00019178,2]
[389160729,1759594240008,-500.0,0.00019178,2]
[389160730,1759594240017,-483.71039907,0.00019178,2]
[389160731,1759594240026,-2880.94,0.00019178,2]
[389160732,1759594240036,-743.99,0.00019178,2]
[389160733,1759594240045,-1465.3,0.00019178,2]
[389160734,1759594240054,-685.48,0.00019178,2]
[389160735,1759594240064,-500.0,0.00019178,2]
[389160736,1759594240074,-566.93,0.00019178,2]
[389160737,1759594240083,-1083.9,0.00019178,2]
[389160738,1759594240098,-2762.22,0.00019178,2]
[389160739,1759594240107,-6186.14,0.00019178,2]
[389160740,1759594240116,-2762.22,0.00019178,2]
[389160741,1759594240126,-818.86,0.00019178,2]
[389160742,1759594240136,-500.0,0.00019178,2]
[389160743,1759594240145,-500.0,0.00019178,2]
[389160744,1759594240156,-2762.22,0.00019178,2]
[389160745,1759594240167,-2762.22,0.00019178,2]
[389160746,1759594240177,-2762.22,0.00019178,2]
[389160747,1759594240186,-500.0,0.00019178,2]
[389160748,1759594240195,-2762.22,0.00019178,2]
[389160749,1759594240205,-2048.4,0.00019178,2]
[389160750,1759594240214,-2762.22,0.00019178,2]
[389160751,1759594240223,-237.95586481,0.00019178,2]
[389160753,1759594240233,-2762.22,0.00019178,2]
[389160754,1759594240242,-500.0,0.00019178,2]
[389160755,1759594240251,-565.11,0.00019178,2]
[389160756,1759594240260,-2762.22,0.00019178,2]
[389160757,1759594240269,-3327.52,0.00019178,2]
[389160758,1759594240278,-2762.22,0.00019178,2]
[389160759,1759594240287,-500.0,0.00019178,2]
[389160760,1759594240297,-500.0,0.00019178,2]
[389160761,1759594240306,-500.0,0.00019178,2]
[389160762,1759594240315,-1094.1,0.00019178,2]
[389160763,1759594240324,-500.0,0.00019178,2]
[389160764,1759594240334,-500.0,0.00019178,2]
[389160765,1759594240343,-500.0,0.00019178,2]
[389160766,1759594240353,-1220.9,0.00019178,2]
[389160767,1759594240362,-500.0,0.00019178,2]
[389160768,1759594240371,-634.73,0.00019178,2]
[389160769,1759594240380,-500.0,0.00019178,2]
[389160770,1759594240389,-8426.66,0.00019178,2]
[389160771,1759594240398,-614.67,0.00019178,2]
[389160772,1759594240407,-500.0,0.00019178,2]
[389160773,1759594240415,-500.0,0.00019178,2]
[389160774,1759594240426,-500.0,0.00019178,2]
[389160775,1759594240435,-500.0,0.00019178,2]
[389160776,1759594240444,-346.00345145,0.00019178,2]
[389160777,1759594240453,-1247.29,0.00019178,2]
[389160778,1759594240463,-1277.4,0.00019178,2]
[389160779,1759594240473,-500.0,0.00019178,2]
[389160780,1759594240482,-500.0,0.00019178,2]
[389160781,1759594240492,-500.0,0.00019178,2]
[389160782,1759594240501,-500.0,0.00019178,2]
[389160783,1759594240510,-500.0,0.00019178,2]
[389160784,1759594240520,-638.1,0.00019178,2]
[389160785,1759594240529,-156.34048286,0.00019178,2]
[389160786,1759594240538,-567.60700122,0.00019178,2]
[389160787,1759594240547,-500.0,0.00019178,2]
[389160788,1759594240556,-500.0,0.00019178,2]
[389160789,1759594240566,-4901.44,0.00019178,2]
[389160790,1759594240575,-500.0,0.00019178,2]
[389160791,1759594240585,-2214.38,0.00019178,2]
[389160792,1759594240594,-500.0,0.00019178,2]
[389160793,1759594240604,-3495.74,0.00019178,2]
[389160794,1759594240613,-196.38286435,0.00019178,2]
[389160795,1759594240623,-4445.12,0.00019178,2]
[389160796,1759594240632,-500.0,0.00019178,2]
[389160798,1759594240642,-500.0,0.00019178,2]
[389160799,1759594240652,-253.63267838,0.00019178,2]
[389160800,1759594240662,-538.63,0.00019178,2]
[389160801,1759594240672,-500.0,0.00019178,2]
[389160803,1759594240682,-872.26,0.00019178,2]
[389160805,1759594240692,-500.0,0.00019178,2]
[389160807,1759594240702,-500.0,0.00019178,2]
[389160808,1759594240711,-1031.93,0.00019178,2]
[389160809,1759594240720,-500.0,0.00019178,2]
[389160810,1759594240729,-934.27,0.00019178,2]
[389160811,1759594240738,-492.47914744,0.00019178,2]
[389160812,1759594240748,-1046.7,0.00019178,2]
[389160814,1759594240757,-2213.35,0.00019178,2]
[389160816,1759594240767,-1094.17,0.00019178,2]
[389160817,1759594240776,-500.0,0.00019178,2]
[389160819,1759594240784,-500.0,0.00019178,2]
[389160821,1759594240794,-500.0,0.00019178,2]
[389160823,1759594240804,-2065.62,0.00019178,2]
[389160825,1759594240813,-5368.89,0.00019178,2]
[389160826,1759594240823,-500.0,0.00019178,2]
[389160827,1759594240833,-500.0,0.00019178,2]
[389160828,1759594240843,-330.744392,0.00019178,2]
[389160829,1759594240852,-500.0,0.00019178,2]
[389160830,1759594240862,-716.62,0.00019178,2]
[389160831,1759594240871,-500.0,0.00019178,2]
[389160832,1759594240880,-500.0,0.00019178,2]
[389160833,1759594240889,-500.0,0.00019178,2]
[389160835,1759594240898,-500.0,0.00019178,2]
[389160837,1759594240908,-500.0,0.00019178,2]
[389160838,1759594240917,-6584.71,0.00019178,2]
[389160840,1759594240927,-885.69,0.00019178,2]
[389160842,1759594240936,-1955.25,0.00019178,2]
[389160844,1759594240946,-965.85,0.00019178,2]
[389160846,1759594240955,-500.0,0.00019178,2]
[389160847,1759594240964,-1556.46,0.00019178,2]
[389160848,1759594240973,-856.81,0.00019178,2]
[389160849,1759594240982,-500.0,0.00019178,2]
[389160850,1759594240991,-845.65,0.00019178,2]
[389160851,1759594241000,-500.0,0.00019178,2]
[389160852,1759594241010,-500.0,0.00019178,2]
[389160853,1759594241019,-443.17015291,0.00019178,2]
[389160854,1759594241028,-500.0,0.00019178,2]
[389160855,1759594241038,-3690.69,0.00019178,2]
[389160856,1759594241047,-289.26581039,0.00019178,2]
[389160857,1759594241056,-1359.18,0.00019178,2]
[389160858,1759594241065,-1133.98,0.00019178,2]
[389160859,1759594241074,-500.0,0.00019178,2]
[389160860,1759594241085,-500.0,0.00019178,2]
[389160861,1759594241099,-220.6117151,0.00019178,2]
[389160862,1759594241109,-3203.73,0.00019178,2]
[389160863,1759594241119,-500.0,0.00019178,2]
[389160864,1759594241129,-500.0,0.00019178,2]
[389160865,1759594241139,-1407.79756957,0.00019185,2]
[389160866,1759594241148,-151.0,0.000194,2]
[389160867,1759594241157,-176.75575821,0.00019426,2]
[389160868,1759594241166,-2762.22,0.00019451,2]
[389160869,1759594241178,-2762.22,0.00019451,2]
[389160870,1759594241188,-2762.22,0.00019451,2]
[389160871,1759594241197,-2762.22,0.00019451,2]
[389160872,1759594241208,-2762.22,0.00019451,2]
[389160873,1759594241217,-2762.22,0.00019451,2]
[389160874,1759594241227,-2762.22,0.00019451,2]
[389160875,1759594241236,-500.0,0.00019452,2]
[389160876,1759594241246,-548.21,0.00019452,2]
[389160877,1759594241255,-500.0,0.00019452,2]
[389160878,1759594241264,-500.0,0.00019452,2]
[389160879,1759594241274,-257.36122674,0.00019452,2]
[389160880,1759594241283,-500.0,0.00019452,2]
[389160881,1759594241292,-500.0,0.00019452,2]
[389160882,1759594241302,-500.0,0.00019452,2]
[389160883,1759594241311,-500.0,0.00019452,2]
[389160884,1759594241321,-500.0,0.00019452,2]
[389160885,1759594241330,-645.18,0.00019452,2]
[389160886,1759594241341,-960.3,0.00019452,2]
[389160887,1759594241351,-500.0,0.00019452,2]
[389160888,1759594241360,-500.0,0.00019452,2]
[389160889,1759594241370,-500.0,0.00019452,2]
[389160890,1759594241379,-500.0,0.00019452,2]
[389160891,1759594241389,-500.0,0.00019452,2]
[389160892,1759594241399,-342.95747013,0.00019452,2]
[389160893,1759594241408,-500.0,0.00019452,2]
[389160894,1759594241418,-500.0,0.00019452,2]
[389160895,1759594241431,-500.0,0.00019452,2]
[389160896,1759594241441,-500.0,0.00019452,2]
[389160897,1759594241451,-500.0,0.00019452,2]
[389160898,1759594241461,-500.0,0.00019452,2]
[389160899,1759594241471,-500.0,0.00019452,2]
[389160900,1759594241481,-500.0,0.00019452,2]
[389160901,1759594241491,-802.67,0.00019452,2]
[389160902,1759594241500,-658.12,0.00019452,2]
[389160903,1759594241510,-500.0,0.00019452,2]
[389160904,1759594241519,-595.25,0.00019452,2]
[389160905,1759594241709,-576.80880087,0.00019452,2]
[389160906,1759594241719,-500.0,0.00019452,2]
[389160907,1759594241729,-500.0,0.00019452,2]
[389160908,1759594241739,-500.0,0.00019452,2]
[389160909,1759594241748,-500.0,0.00019452,2]
[389160910,1759594241758,-500.0,0.00019452,2]
[389160911,1759594241767,-826.63,0.00019452,2]
[389160912,1759594241778,-500.0,0.00019452,2]
[389160913,1759594241788,-500.0,0.00019452,2]
[389160914,1759594241797,-500.0,0.00019452,2]
[389160915,1759594241807,-500.0,0.00019452,2]
[389160916,1759594241817,-620.8,0.00019452,2]
[389160917,1759594241827,-575.21,0.00019452,2]
[389160918,1759594241836,-500.0,0.00019452,2]
[389160919,1759594241846,-500.0,0.00019452,2]
[389160920,1759594241855,-545.47,0.00019452,2]
[389160921,1759594241865,-500.0,0.00019452,2]
[389160922,1759594241874,-500.0,0.00019452,2]
[389160923,1759594241884,-500.0,0.00019452,2]
[389160924,1759594241894,-500.0,0.00019452,2]
[389160925,1759594241904,-500.0,0.00019452,2]
[389160926,1759594241913,-500.0,0.00019452,2]
[389160927,1759594241923,-557.16,0.00019452,2]
[389160928,1759594241933,-500.0,0.00019452,2]
[389160929,1759594241942,-500.0,0.00019452,2]
[389160930,1759594241952,-500.0,0.00019452,2]
[389160931,1759594241961,-500.0,0.00019452,2]
[389160932,1759594241971,-500.0,0.00019452,2]
[389160933,1759594241980,-500.0,0.00019452,2]
[389160934,1759594241989,-500.0,0.00019452,2]
[389160935,1759594241999,-500.0,0.00019452,2]
[389160936,1759594242008,-353.57362495,0.00019452,2]
[389160937,1759594242018,-1609.47,0.00019452,2]
[389160938,1759594242027,-500.0,0.00019452,2]
[389160939,1759594242037,-993.63,0.00019452,2]
[389160940,1759594242046,-500.0,0.00019452,2]
[389160941,1759594242055,-500.0,0.00019452,2]
[389160942,1759594242065,-500.0,0.00019452,2]
[389160943,1759594242075,-500.0,0.00019452,2]
[389160944,1759594242086,-500.0,0.00019452,2]
[389160945,1759594242097,-500.0,0.00019452,2]
[389160946,1759594242107,-500.0,0.00019452,2]
[389160947,1759594242116,-500.0,0.00019452,2]
[389160948,1759594242126,-500.0,0.00019452,2]
[389160949,1759594242135,-639.50998045,0.00019452,2]
[389160950,1759594242144,-500.0,0.00019452,2]
[389160951,1759594242153,-500.0,0.00019452,2]
[389160952,1759594242163,-500.0,0.00019452,2]
[389160953,1759594242173,-500.0,0.00019452,2]
[389160954,1759594242183,-500.0,0.00019452,2]
[389160955,1759594242193,-500.0,0.00019452,2]
[389160956,1759594242202,-500.0,0.00019452,2]
[389160957,1759594242211,-500.0,0.00019452,2]
[389160958,1759594242220,-500.0,0.00019452,2]
[389160959,1759594242230,-500.0,0.00019452,2]
[389160960,1759594242240,-500.0,0.00019452,2]
[389160961,1759594242249,-500.0,0.00019452,2]
[389160962,1759594242258,-846.86,0.00019452,2]
[389160963,1759594242267,-196.46238675,0.00019452,2]
[389160964,1759594242276,-500.0,0.00019452,2]
[389160965,1759594242287,-500.0,0.00019452,2]
[389160966,1759594242296,-500.0,0.00019452,2]
[389160967,1759594242305,-335.81389104,0.00019452,2]
[389160968,1759594242315,-250.63762612,0.00019452,2]
[389160969,1759594242324,-520.83,0.00019452,2]
[389160970,1759594242335,-500.0,0.00019452,2]
[389160971,1759594242344,-500.0,0.00019452,2]
[389160972,1759594242354,-500.0,0.00019452,2]
[389160973,1759594242363,-2187.44,0.00019452,2]
[389160974,1759594242372,-500.0,0.00019452,2]
[389160975,1759594242382,-500.0,0.00019452,2]
[389160976,1759594242392,-500.0,0.00019452,2]
[389160977,1759594242402,-500.0,0.00019452,2]
[389160978,1759594242411,-657.22,0.00019452,2]
[389160979,1759594242420,-500.0,0.00019452,2]
[389160980,1759594242430,-500.0,0.00019452,2]
[389160981,1759594242439,-500.0,0.00019452,2]
[389160982,1759594242448,-500.0,0.00019452,2]
[389160983,1759594242458,-462.87791826,0.00019452,2]
[389160984,1759594242467,-500.0,0.00019452,2]
[389160985,1759594242477,-500.0,0.00019452,2]
[389160986,1759594242486,-500.0,0.00019452,2]
[389160987,1759594242496,-500.0,0.00019452,2]
[389160988,1759594242506,-500.0,0.00019452,2]
[389160990,1759594242519,-500.0,0.00019452,2]
[389160992,1759594242529,-500.0,0.00019452,2]
[389160993,1759594242538,-500.0,0.00019452,2]
[389160994,1759594242548,-500.0,0.00019452,2]
[389160995,1759594242558,-500.0,0.00019452,2]
[389160996,1759594242568,-500.0,0.00019452,2]
[389160997,1759594242578,-500.0,0.00019452,2]
[389160998,1759594242587,-500.0,0.00019452,2]
[389160999,1759594242597,-500.0,0.00019452,2]
[389161000,1759594242606,-500.0,0.00019452,2]
[389161001,1759594242616,-500.0,0.00019452,2]
[389161002,1759594242625,-585.06,0.00019452,2]
[389161003,1759594242634,-500.0,0.00019452,2]
[389161004,1759594242644,-500.0,0.00019452,2]
[389161005,1759594242653,-500.0,0.00019452,2]
[389161006,1759594242662,-500.0,0.00019452,2]
[389161007,1759594242672,-500.0,0.00019452,2]
[389161008,1759594242682,-808.08,0.00019452,2]
[389161009,1759594242691,-2827.56,0.00019452,2]
[389161010,1759594242700,-500.0,0.00019452,2]
[389161011,1759594242710,-500.0,0.00019452,2]
[389161012,1759594242719,-500.0,0.00019452,2]
[389161014,1759594242728,-528.8,0.00019452,2]
[389161016,1759594242738,-500.0,0.00019452,2]
[389161019,1759594242747,-500.0,0.00019452,2]
[389161022,1759594242757,-500.0,0.00019452,2]
[389161024,1759594242767,-500.0,0.00019452,2]
[389161028,1759594242777,-500.0,0.00019452,2]
[389161031,1759594242786,-500.0,0.00019452,2]
[389161034,1759594242795,-500.0,0.00019452,2]
[389161035,1759594242805,-500.0,0.00019452,2]
[389161037,1759594242814,-965.77,0.00019452,2]
[389161038,1759594242824,-500.0,0.00019452,2]
[389161039,1759594242833,-500.0,0.00019452,2]
[389161040,1759594242842,-2556.96,0.00019452,2]
[389161041,1759594242852,-545.69,0.00019452,2]
[389161042,1759594242862,-500.0,0.00019452,2]
[389161043,1759594242872,-500.0,0.00019452,2]
[389161044,1759594242881,-1148.07,0.00019452,2]
[389161045,1759594242891,-500.0,0.00019452,2]
[389161046,1759594242901,-930.62,0.00019452,2]
[389161047,1759594242910,-937.5,0.00019452,2]
[389161048,1759594242920,-500.0,0.00019452,2]
[389161049,1759594242930,-500.0,0.00019452,2]
[389161050,1759594242939,-1548.55,0.00019452,2]
[389161051,1759594242949,-500.0,0.00019452,2]
[389161052,1759594242959,-500.0,0.00019452,2]
[389161053,1759594242968,-886.37,0.00019452,2]
[389161054,1759594242978,-500.0,0.00019452,2]
[389161055,1759594242987,-500.0,0.00019452,2]
[389161056,1759594242997,-521.49,0.00019452,2]
[389161057,1759594243006,-500.0,0.00019452,2]
[389161059,1759594243015,-500.0,0.00019452,2]
[389161061,1759594243025,-556.69,0.00019452,2]
[389161062,1759594243034,-3236.34,0.00019452,2]
[389161063,1759594243044,-500.0,0.00019452,2]
[389161064,1759594243054,-500.0,0.00019452,2]
[389161065,1759594243064,-500.0,0.00019452,2]
[389161066,1759594243073,-602.0,0.00019452,2]
[389161067,1759594243087,-500.0,0.00019452,2]
[389161068,1759594243097,-2126.75,0.00019452,2]
[389161070,1759594243107,-500.0,0.00019452,2]
[389161071,1759594243116,-442.59613019,0.00019452,2]
[389161073,1759594243126,-1368.15,0.00019452,2]
[389161074,1759594243136,-2919.67,0.00019452,2]
[389161075,1759594243146,-369.56777703,0.00019452,2]
[389161076,1759594243156,-7184.49,0.00019452,2]
[389161077,1759594243166,-500.0,0.00019452,2]
[389161078,1759594243176,-500.0,0.00019452,2]
[389161079,1759594243185,-500.0,0.00019452,2]
[389161080,1759594243195,-529.15,0.00019452,2]
[389161081,1759594243204,-2145.97,0.00019452,2]
[389161082,1759594243214,-1648.89,0.00019452,2]
[389161083,1759594243223,-500.0,0.00019452,2]
[389161084,1759594243232,-500.0,0.00019452,2]
[389161085,1759594243242,-283.13516296,0.00019452,2]
[389161086,1759594243251,-777.83,0.00019452,2]
[389161088,1759594243262,-771.31,0.00019452,2]
[389161090,1759594243272,-1211.96,0.00019452,2]
[389161091,1759594243282,-500.0,0.00019452,2]
[389161092,1759594243292,-500.0,0.00019452,2]
[389161093,1759594243301,-543.31,0.00019452,2]
[389161094,1759594243311,-581.23,0.00019452,2]
[389161096,1759594243320,-500.0,0.00019452,2]
[389161097,1759594243330,-500.0,0.00019452,2]
[389161098,1759594243339,-3085.44,0.00019452,2]
[389161099,1759594243348,-2348.19,0.00019452,2]
[389161100,1759594243358,-500.0,0.00019452,2]
[389161101,1759594243367,-500.0,0.00019452,2]
[389161102,1759594243376,-2155.15,0.00019452,2]
[389161103,1759594243386,-9923.48,0.00019452,2]
[389161104,1759594243396,-500.0,0.00019452,2]
[389161105,1759594243406,-3552.06,0.00019452,2]
[389161106,1759594243416,-3319.92,0.00019452,2]
[389161107,1759594243426,-500.0,0.00019452,2]
[389161108,1759594243437,-500.0,0.00019452,2]
[389161109,1759594243447,-500.0,0.00019452,2]
[389161110,1759594243457,-10724.72,0.00019452,2]
[389161111,1759594243467,-3895.61,0.00019452,2]
[389161112,1759594243476,-500.0,0.00019452,2]
[389161113,1759594243486,-500.0,0.00019452,2]
[389161114,1759594243497,-3903.44,0.00019452,2]
[389161115,1759594243508,-500.0,0.00019452,2]
[389161116,1759594243519,-500.0,0.00019452,2]
[389161117,1759594243530,-500.0,0.00019452,2]
[389161118,1759594243540,-500.0,0.00019452,2]
[389161119,1759594243549,-5695.0,0.00019452,2]
[389161120,1759594243559,-500.0,0.00019452,2]
[389161121,1759594243570,-500.0,0.00019452,2]
[389161122,1759594243580,-5737.0,0.00019452,2]
[389161123,1759594243590,-1751.15,0.00019452,2]
[389161124,1759594243600,-500.0,0.00019452,2]
[389161125,1759594243610,-500.0,0.00019452,2]
[389161126,1759594243620,-582.11,0.00019452,2]
[389161127,1759594243630,-945.03,0.00019452,2]
[389161128,1759594243639,-500.0,0.00019452,2]
[389161129,1759594243649,-846.77,0.00019452,2]
[389161130,1759594243659,-1048.13,0.00019452,2]
[389161131,1759594243668,-500.0,0.00019452,2]
[389161132,1759594243679,-1604.48,0.00019452,2]
[389161133,1759594243689,-500.0,0.00019452,2]
[389161134,1759594243699,-2880.94,0.00019452,2]
[389161135,1759594243709,-1465.3,0.00019452,2]
[389161136,1759594243718,-685.48,0.00019452,2]
[389161137,1759594243729,-743.99,0.00019452,2]
[389161138,1759594243738,-500.0,0.00019452,2]
[389161139,1759594243748,-566.93,0.00019452,2]
[389161140,1759594243758,-1083.9,0.00019452,2]
[389161141,1759594243768,-6186.14,0.00019452,2]
[389161142,1759594243778,-818.86,0.00019452,2]
[389161143,1759594243788,-500.0,0.00019452,2]
[389161144,1759594243798,-500.0,0.00019452,2]
[389161145,1759594243807,-500.0,0.00019452,2]
[389161146,1759594243817,-2048.4,0.00019452,2]
[389161147,1759594243826,-500.0,0.00019452,2]
[389161148,1759594243836,-565.11,0.00019452,2]
[389161149,1759594243846,-3327.52,0.00019452,2]
[389161150,1759594243855,-1094.1,0.00019452,2]
[389161151,1759594243865,-500.0,0.00019452,2]
[389161152,1759594243875,-500.0,0.00019452,2]
[389161153,1759594243885,-500.0,0.00019452,2]
[389161154,1759594243895,-1220.9,0.00019452,2]
[389161155,1759594243904,-500.0,0.00019452,2]
[389161156,1759594243913,-634.73,0.00019452,2]
[389161157,1759594243923,-500.0,0.00019452,2]
[389161158,1759594243933,-8426.66,0.00019452,2]
[389161159,1759594243942,-614.67,0.00019452,2]
[389161160,1759594243952,-500.0,0.00019452,2]
[389161161,1759594243961,-500.0,0.00019452,2]
[389161162,1759594243971,-500.0,0.00019452,2]
[389161163,1759594243981,-500.0,0.00019452,2]
[389161164,1759594243991,-1247.29,0.00019452,2]
[389161165,1759594244002,-1277.4,0.00019452,2]
[389161166,1759594244012,-500.0,0.00019452,2]
[389161167,1759594244021,-500.0,0.00019452,2]
[389161168,1759594244032,-500.0,0.00019452,2]
[389161169,1759594244042,-500.0,0.00019452,2]
[389161170,1759594244051,-638.1,0.00019452,2]
[389161171,1759594244062,-500.0,0.00019452,2]
[389161172,1759594244120,-4901.44,0.00019452,2]
[389161173,1759594244131,-288.49280113,0.00019452,2]
[389161174,1759594244140,-2214.38,0.00019452,2]
[389161175,1759594244151,-500.0,0.00019452,2]
[389161176,1759594244160,-3495.74,0.00019452,2]
[389161177,1759594244176,-4445.12,0.00019452,2]
[389161178,1759594244186,-500.0,0.00019452,2]
[389161179,1759594244195,-538.63,0.00019452,2]
[389161180,1759594244204,-872.26,0.00019452,2]
[389161181,1759594244215,-500.0,0.00019452,2]
[389161182,1759594244224,-1031.93,0.00019452,2]
[389161183,1759594244234,-500.0,0.00019452,2]
[389161184,1759594244245,-934.27,0.00019452,2]
[389161185,1759594244255,-1046.7,0.00019452,2]
[389161186,1759594244264,-2213.35,0.00019452,2]
[389161187,1759594244275,-1094.17,0.00019452,2]
[389161188,1759594244285,-500.0,0.00019452,2]
[389161189,1759594244295,-500.0,0.00019452,2]
[389161190,1759594244305,-500.0,0.00019452,2]
[389161191,1759594244315,-2065.62,0.00019452,2]
[389161192,1759594244327,-5368.89,0.00019452,2]
[389161193,1759594244336,-500.0,0.00019452,2]
[389161194,1759594244346,-561.25,0.00019452,2]
[389161195,1759594244356,-500.0,0.00019452,2]
[389161196,1759594244365,-500.0,0.00019452,2]
[389161197,1759594244375,-716.62,0.00019452,2]
[389161198,1759594244384,-500.0,0.00019452,2]
[389161199,1759594244393,-500.0,0.00019452,2]
[389161200,1759594244402,-500.0,0.00019452,2]
[389161201,1759594244412,-500.0,0.00019452,2]
[389161202,1759594244421,-6584.71,0.00019452,2]
[389161203,1759594244431,-885.69,0.00019452,2]
[389161204,1759594244440,-1955.25,0.00019452,2]
[389161205,1759594244449,-500.0,0.00019452,2]
[389161206,1759594244459,-965.85,0.00019452,2]
[389161207,1759594244468,-1556.46,0.00019452,2]
[389161208,1759594244477,-856.81,0.00019452,2]
[389161209,1759594244487,-500.0,0.00019452,2]
[389161210,1759594244496,-845.65,0.00019452,2]
[389161211,1759594244505,-500.0,0.00019452,2]
[389161212,1759594244515,-500.0,0.00019452,2]
[389161213,1759594244524,-500.0,0.00019452,2]
[389161214,1759594244533,-3690.69,0.00019452,2]
[389161215,1759594244542,-1359.18,0.00019452,2]
[389161216,1759594244551,-1133.98,0.00019452,2]
[389161217,1759594244560,-219.406388,0.00019452,10]
[389161218,1759594244570,-500.0,0.00019452,2]
[389161219,1759594244579,-500.0,0.00019452,2]
[389161220,1759594244589,-3203.73,0.00019452,2]
[389161221,1759594244599,-500.0,0.00019452,2]
[389161222,1759594244608,-500.0,0.00019452,2]
[389161223,1759594244619,-500.0,0.00019473,2]
[389161224,1759594244628,-500.0,0.00019473,2]
[389161225,1759594244639,-500.0,0.00019473,2]
[389161226,1759594244649,-500.0,0.00019473,2]
[389161227,1759594244659,-500.0,0.00019473,2]
[389161228,1759594244670,-500.0,0.00019473,2]
[389161229,1759594244680,-440.32014047,0.00019473,2]
[389161230,1759594244690,-161.71105245,0.00019473,2]
[389161231,1759594244700,-595.1743883,0.00019473,2]
[389161232,1759594244710,-500.0,0.00019473,2]
[389161233,1759594244721,-500.0,0.00019473,2]
[389161234,1759594244730,-500.0,0.00019473,2]
[389161235,1759594244739,-500.0,0.00019473,2]
[389161236,1759594244749,-500.0,0.00019473,2]
[389161237,1759594244759,-500.0,0.00019473,2]
[389161238,1759594244768,-500.0,0.00019473,2]
[389161239,1759594244777,-500.0,0.00019473,2]
[389161240,1759594244787,-324.33622629,0.00019473,2]
[389161241,1759594244797,-500.0,0.00019473,2]
[389161242,1759594244807,-500.0,0.00019473,2]
[389161243,1759594244817,-500.0,0.00019473,2]
[389161244,1759594244827,-500.0,0.00019473,2]
[389161245,1759594244837,-500.0,0.00019473,2]
[389161246,1759594244847,-500.0,0.00019473,2]
[389161247,1759594244861,-500.0,0.00019473,2]
[389161248,1759594244871,-500.0,0.00019473,2]
[389161249,1759594244880,-500.0,0.00019473,2]
[389161250,1759594244890,-201.91808236,0.00019489,2]
[389161251,1759594244899,-477972.05974397,0.000195,2]
[389161252,1759594245119,-2610.2500005,0.000195,2]
[389161253,1759594245134,-1230.51202142,0.000195,2]
[389161255,1759594245501,1000.0,0.00028767,120]
[389161265,1759594246100,-539.06447904,0.00018989,2]
[389161266,1759594246110,-217.14921842,0.00018989,2]